bitfinex-derivatives/quotes_SOLF0:USTF0_20240927
["timestamp","ask_amount","ask_price","bid_price","bid_amount"]
[1727430880890,3.1603,158.17,158.15,3.1607]
[1727430882489,10.69,158.16,158.06,1.2666]
[1727430882691,10.69,158.14,158.08,10.69]
[1727430882886,13.8511,158.14,158.08,10.69]
[1727430884890,13.8511,158.14,158.12,3.1612]
[1727430885290,2.5484,158.19,158.11,10.69]
[1727430885488,10.69,158.17,158.12,10.69]
[1727430885889,10.69,158.17,158.11,10.69]
[1727430886188,10.69,158.15,158.11,10.69]
[1727430886490,10.69,158.15,158.1,10.69]
[1727430886688,10.69,158.13,158.08,10.69]
[1727430886888,10.69,158.13,158.11,3.1614]
[1727430887294,10.69,158.12,158.06,1.2666]
[1727430887491,13.8515,158.12,158.09,3.1618]
[1727430888188,13.8515,158.12,158.1,3.1617]
[1727430890688,13.8515,158.12,158.09,3.1619]
[1727430890883,10.69,158.1,158.09,3.1619]
[1727430891495,10.69,158.1,158.04,2.6054]
[1727430891691,10.69,158.08,158.04,1.3108]
[1727430891992,10.69,158.07,158.01,1.3566]
[1727430892193,10.69,158.06,158.02,10.69]
[1727430892495,10.69,158.06,158.04,3.1628]
[1727430892895,3.17289861,158.1,158.03,10.69]
[1727430893090,13.8522,158.08,158.05,3.1626]
[1727430897299,10.69,158.07,158.05,3.1626]
[1727430898888,13.8523,158.07,158.05,3.1626]
[1727430899695,3.1622,158.08,158.06,3.1625]
[1727430899900,10.69,158.07,158.06,3.1625]
[1727430906499,10.69,158.07,158.05,3.1626]
[1727430906705,10.69,158.06,158.05,3.1626]
[1727430908806,3.19093183,158.11,158.02,10.69]
[1727430908807,3.19093183,158.11,158.06,3.1625]
[1727430909106,10.69,158.07,158.06,3.1625]
[1727430909301,10.69,158.08,158.03,10.69]
[1727430910908,10.69,158.08,158.07,3.1622]
[1727430911208,6.3208,158.17,158.05,10.69]
[1727430911411,10.69,158.1,158.05,10.69]
[1727430913607,10.69,158.11,158.07,10.69]
[1727430913812,68.32,158.18,158.07,10.69]
[1727430914013,10.69,158.12,158.1,3.1615]
[1727430917518,10.69,158.12,158.11,3.1615]
[1727430917812,10.69,158.12,158.07,10.69]
[1727430918605,10.69,158.12,158.1,3.1616]
[1727430920211,13.8513,158.13,158.11,3.1614]
[1727430920714,10.69,158.16,158.1,10.69]
[1727430920911,10.69,158.17,158.11,10.69]
[1727430921111,1.2946,158.19,158.13,10.69]
[1727430921308,10.69,158.18,158.13,10.69]
[1727430921906,3.1603,158.17,158.14,3.1608]
[1727430922917,10.69,158.16,158.14,3.1608]
[1727430924519,10.69,158.16,158.12,10.69]
[1727430924520,10.69,158.16,158.15,3.1607]
[1727430924912,1.3478,158.2,158.13,10.69]
[1727430925116,10.69,158.19,158.17,3.1603]
[1727430925914,10.69,158.19,158.13,10.69]
[1727430926120,10.69,158.19,158.08,5.69408803]
[1727430926121,10.69,158.16,158.11,10.69]
[1727430926418,10.69,158.16,158.14,3.1608]
[1727430928224,1.3478,158.2,158.15,10.69]
[1727430928420,1.2499,158.25,158.11,6.3228]
[1727430928421,1.2499,158.25,158.17,10.69]
[1727430928624,1.2499,158.25,158.19,10.69]
[1727430928926,4.5272,158.26,158.2,10.69]
[1727430929114,10.69,158.25,158.21,10.69]
[1727430929516,10.69,158.25,158.22,3.1592]
[1727430929919,4.5271,158.26,158.21,10.69]
[1727430930119,15.2171,158.26,158.21,10.69]
[1727430930319,13.8486,158.26,158.21,10.69]
[1727430930716,10.69,158.26,158.21,10.69]
[1727430931522,10.69,158.26,158.23,3.159]
[1727430932331,10.69,158.26,158.21,10.69]
[1727430933328,10.69,158.26,158.24,3.1588]
[1727430936032,10.69,158.25,158.18,1.2578]
[1727430936332,10.69,158.25,158.2,10.69]
[1727430936730,13.8488,158.25,158.22,3.1593]
[1727430936930,10.69,158.23,158.17,1.3175]
[1727430937137,10.69,158.21,158.15,10.69]
[1727430937332,10.69,158.19,158.18,3.16]
[1727430937939,10.69,158.19,158.13,10.69]
[1727430938138,10.69,158.18,158.13,10.69]
[1727430939437,10.69,158.18,158.17,3.1603]
[1727430940732,10.69,158.18,158.12,2.5469]
[1727430941035,10.69,158.17,158.12,13.2369]
[1727430941428,10.69,158.17,158.16,3.1604]
[1727430942136,10.69,158.17,158.11,10.69]
[1727430942437,3.8714,158.22,158.11,10.69]
[1727430942438,10.69,158.15,158.11,10.69]
[1727430942635,10.69,158.14,158.13,3.1611]
[1727430943133,10.69,158.14,158.12,3.1612]
[1727430943338,10.69,158.14,158.09,10.69]
[1727430943739,10.69,158.14,158.08,2.6634]
[1727430943941,10.69,158.14,158.09,10.69]
[1727430944442,10.69,158.14,158.13,3.1611]
[1727430946841,10.69,158.14,158.11,3.1614]
[1727430947044,10.69,158.12,158.06,64.51307895]
[1727430947444,10.69,158.12,158.1,3.1616]
[1727430948142,10.69,158.12,158.11,3.1615]
[1727430949943,10.69,158.12,158.1,3.1616]
[1727430950445,13.8514,158.12,158.09,3.1619]
[1727430950641,10.69,158.1,158.09,3.1619]
[1727430950841,10.69,158.1,158.06,53.82307895]
[1727430951938,13.8516,158.11,158.09,3.1619]
[1727430952142,10.69,158.11,158.09,3.1619]
[1727430952545,1.3599,158.14,158.1,10.69]
[1727430952742,10.69,158.15,158.11,10.69]
[1727430953445,3.1605,158.16,158.13,3.161]
[1727430953643,10.69,158.15,158.13,3.161]
[1727430954344,3.1605,158.16,158.13,3.161]
[1727430954940,3.1607,158.15,158.13,3.161]
[1727430955340,16.71,158.17,158.08,16.71]
[1727430955645,19.8705,158.17,158.08,16.71]
[1727430955849,16.71,158.17,158.09,1.272]
[1727430956251,16.71,158.19,158.1,16.71]
[1727430956447,16.71,158.19,158.1,18.0276]
[1727430956949,3.1602,158.18,158.15,3.1606]
[1727430959651,3.1608,158.15,158.1,1.3176]
[1727430959844,16.71,158.15,158.06,53.82307895]
[1727430960449,3.161,158.14,158.11,3.1614]
[1727430960652,19.81046751,158.15,158.11,3.1614]
[1727430961750,3.161,158.14,158.11,3.1614]
[1727430962154,16.71,158.15,158.07,16.71]
[1727430962355,19.8708,158.15,158.07,16.71]
[1727430963153,19.8708,158.15,158.12,3.1612]
[1727430963754,3.161,158.14,158.12,3.1612]
[1727430963959,16.71,158.15,158.11,3.1614]
[1727430964154,16.71,158.15,158.06,53.82307895]
[1727430964155,3.1614,158.12,158.06,53.82307895]
[1727430964658,16.71,158.11,158.06,53.82307895]
[1727430965144,19.8716,158.11,158.08,3.162]
[1727430965456,16.71,158.09,158.04,2.6688]
[1727430965650,16.71,158.09,158.01,16.71]
[1727430965851,16.71,158.09,158.07,3.1623]
[1727430965852,19.8719,158.09,158.07,3.1623]
[1727430966857,19.8719,158.09,158.06,3.1625]
[1727430967052,3.1622,158.08,158.01,16.71]
[1727430967259,16.71,158.07,158.0,2.7319]
[1727430967460,3.1628,158.05,158.0,2.7319]
[1727430967661,19.8728,158.05,158.0,2.7319]
[1727430967852,16.71,158.05,158.0,2.7319]
[1727430968047,16.71,158.05,158.03,3.163]
[1727430968248,16.71,158.05,158.0,2.7319]
[1727430968458,16.71,158.05,158.03,3.1631]
[1727430969756,19.8727,158.05,158.03,3.1631]
[1727430970660,19.8727,158.05,158.02,3.1633]
[1727430970960,3.1629,158.04,158.02,3.1633]
[1727430971155,3.1629,158.04,158.0,1.3828]
[1727430971358,3.1629,158.04,158.01,3.1634]
[1727430971556,3.1629,158.04,157.97,18.0835]
[1727430971954,19.8728,158.05,158.02,3.1633]
[1727430974059,16.71,158.05,158.04,3.1629]
[1727430974463,16.71,158.08,158.04,3.1629]
[1727430974662,3.1625,158.07,158.04,3.1629]
[1727430975454,16.71,158.09,158.01,16.71]
[1727430975659,16.71,158.11,158.01,16.71]
[1727430976163,3.1619,158.09,158.02,1.3261]
[1727430976361,16.71,158.11,158.02,1.3261]
[1727430976564,16.71,158.11,158.02,2.6642]
[1727430976762,3.1619,158.09,158.06,3.1624]
[1727430978663,3.1618,158.1,158.07,3.1623]
[1727430979362,19.8716,158.11,158.08,3.162]
[1727430980268,3.1617,158.1,158.08,3.162]
[1727430980469,16.71,158.09,158.03,1.3082]
[1727430980671,16.71,158.09,158.02,2.6642]
[1727430980862,16.71,158.09,158.06,3.1624]
[1727430981059,16.71,158.09,158.02,2.6642]
[1727430981667,19.872,158.09,158.02,2.6642]
[1727430982369,19.872,158.09,158.06,3.1623]
[1727430982767,16.71,158.09,158.04,3.1628]
[1727430982968,16.71,158.07,158.02,2.6642]
[1727430983767,19.8725,158.07,158.05,3.1627]
[1727430984266,10.69,158.06,158.05,3.1627]
[1727430986373,3.9042,158.12,158.02,2.6642]
[1727430986573,10.69,158.07,158.02,2.6642]
[1727430986869,10.69,158.06,158.05,3.1626]
[1727430987372,10.69,158.06,158.0,10.69]
[1727430987568,10.69,158.01,157.98,1.3515]
[1727430988475,10.69,158.01,158.0,3.1637]
[1727430990263,10.69,158.01,157.98,1.3515]
[1727430990264,19.8732,158.03,158.01,3.1635]
[1727430991474,16.71,158.03,158.01,3.1635]
[1727430992672,19.8731,158.03,158.01,3.1635]
[1727430993579,16.71,158.03,158.02,3.1633]
[1727430996678,3.9042,158.12,157.98,1.3515]
[1727430996877,3.9042,158.12,157.97,19.4169]
[1727430996878,16.71,158.06,157.97,19.4169]
[1727430997078,16.71,158.06,157.98,1.2647]
[1727430997882,19.8727,158.06,157.98,1.2647]
[1727430998082,16.71,158.06,157.98,1.2647]
[1727430998481,16.71,158.06,158.04,3.1628]
[1727430999881,19.8725,158.06,158.03,3.163]
[1727431000278,3.1628,158.05,158.03,3.163]
[1727431002879,19.8726,158.06,157.98,1.2647]
[1727431003083,16.71,158.06,157.98,1.2647]
[1727431003482,16.71,158.06,158.04,3.1628]
[1727431006984,16.71,158.06,158.05,3.1627]
[1727431008692,16.71,158.06,158.04,3.1628]
[1727431009492,19.8725,158.06,158.04,3.1628]
[1727431010298,10.69,158.05,158.04,3.1628]
[1727431011097,3.9042,158.12,158.06,3.1624]
[1727431011292,10.69,158.07,158.06,3.1624]
[1727431011498,10.69,158.07,158.01,10.69]
[1727431012495,10.69,158.05,158.0,10.69]
[1727431013093,10.69,158.05,158.04,3.1629]
[1727431013294,10.69,158.05,158.0,10.69]
[1727431013595,10.69,158.02,158.01,3.1635]
[1727431015195,3.163,158.04,158.02,3.1633]
[1727431015396,10.69,158.03,158.02,3.1633]
[1727431017000,3.9042,158.12,158.0,10.69]
[1727431017301,10.69,158.05,158.01,10.69]
[1727431018205,10.69,158.08,158.04,10.69]
[1727431018707,10.69,158.1,158.09,3.1619]
[1727431020498,10.69,158.11,158.06,10.69]
[1727431020705,10.69,158.11,158.1,3.1615]
[1727431023097,10.69,158.11,158.04,13.3372]
[1727431023290,10.69,158.08,158.04,13.3372]
[1727431024099,10.69,158.08,158.07,3.1623]
[1727431025397,3.12979545,158.13,158.08,3.1621]
[1727431025702,10.69,158.1,158.08,3.1621]
[1727431026400,10.69,158.09,158.08,3.1621]
[1727431026799,10.69,158.09,158.07,3.1623]
[1727431027702,10.69,158.08,158.07,3.1623]
[1727431027897,10.69,158.08,158.06,3.1624]
[1727431028302,13.8522,158.08,158.06,3.1624]
[1727431028503,10.69,158.07,158.06,3.1624]
[1727431028700,10.69,158.07,158.02,10.69]
[1727431029305,10.69,158.07,158.06,3.1625]
[1727431030104,3.1618,158.1,158.07,3.1622]
[1727431030306,10.69,158.09,158.07,3.1622]
[1727431030698,13.8519,158.09,158.07,3.1622]
[1727431031606,13.8521,158.08,158.06,3.1624]
[1727431032405,3.1621,158.08,158.06,3.1624]
[1727431032704,13.8521,158.08,158.06,3.1624]
[1727431033100,10.69,158.08,158.07,3.1623]
[1727431033308,10.69,158.09,158.04,10.69]
[1727431034005,10.69,158.09,158.07,3.1621]
[1727431035104,1.2838,158.15,158.07,10.69]
[1727431035308,10.69,158.14,158.08,10.69]
[1727431035507,13.851,158.14,158.08,10.69]
[1727431036114,10.69,158.12,158.07,10.69]
[1727431036800,13.8514,158.12,158.1,3.1616]
[1727431037005,10.69,158.11,158.1,3.1616]
[1727431037510,10.69,158.11,158.09,3.1618]
[1727431038205,13.8515,158.11,158.09,3.1618]
[1727431038404,10.69,158.11,158.09,3.1618]
[1727431040610,13.8515,158.11,158.09,3.1618]
[1727431040909,10.69,158.1,158.07,3.1621]
[1727431041210,10.69,158.09,158.07,3.1621]
[1727431041411,10.69,158.09,158.05,10.69]
[1727431042806,10.69,158.09,158.07,3.1622]
[1727431043205,13.8519,158.1,158.07,3.1622]
[1727431046616,3.15236864,158.12,158.09,3.1619]
[1727431046617,13.8514,158.12,158.09,3.1619]
[1727431046810,13.8514,158.12,158.07,10.69]
[1727431047007,13.8514,158.12,158.1,3.1617]
[1727431048006,10.69,158.12,158.1,3.1617]
[1727431048213,10.69,158.12,158.06,10.69]
[1727431048414,10.69,158.1,158.06,10.69]
[1727431048821,10.69,158.1,158.08,3.162]
[1727431052517,10.69,158.1,158.09,3.1619]
[1727431053714,3.1617,158.11,158.09,3.1619]
[1727431053919,10.69,158.12,158.1,3.1617]
[1727431054920,13.8513,158.12,158.1,3.1617]
[1727431055324,3.1615,158.11,158.09,3.1618]
[1727431055623,10.69,158.12,158.09,3.1618]
[1727431056436,13.8515,158.12,158.09,3.1618]
[1727431057821,3.1616,158.11,158.09,3.1618]
[1727431064020,13.8514,158.12,158.1,3.1617]
[1727431064230,10.69,158.12,158.1,3.1617]
[1727431064722,3.23766151,158.14,158.09,10.69]
[1727431065029,12.0211,158.16,158.12,10.69]
[1727431065218,1.3156,158.2,158.13,10.69]
[1727431065419,10.69,158.19,158.16,3.1604]
[1727431066825,3.1601,158.18,158.16,3.1604]
[1727431067534,13.8501,158.18,158.16,3.1604]
[1727431068430,10.69,158.17,158.11,10.69]
[1727431068620,10.69,158.16,158.11,10.69]
[1727431068824,13.8506,158.16,158.13,3.161]
[1727431069219,13.8506,158.16,158.14,3.1609]
[1727431069729,10.69,158.15,158.1,10.69]
[1727431069931,10.69,158.15,158.13,3.1611]
[1727431070824,10.69,158.15,158.14,3.1609]
[1727431071026,10.69,158.15,158.09,10.69]
[1727431071532,13.8507,158.15,158.12,3.1612]
[1727431071826,10.69,158.13,158.09,10.69]
[1727431072032,10.69,158.13,158.11,3.1613]
[1727431072433,10.69,158.13,158.09,10.69]
[1727431074133,10.69,158.13,158.07,1.2542]
[1727431074347,10.69,158.13,158.08,10.69]
[1727431074723,10.69,158.13,158.11,3.1613]
[1727431075327,10.69,158.12,158.11,3.1613]
[1727431076734,10.69,158.12,158.07,1.2542]
[1727431077034,13.8516,158.11,158.06,1.2664]
[1727431077429,10.69,158.08,158.03,12.0697]
[1727431078323,10.69,158.08,158.07,3.1623]
[1727431080640,13.8521,158.08,158.03,12.0697]
[1727431080837,10.69,158.07,158.03,1.3797]
[1727431081029,10.69,158.08,158.03,12.0697]
[1727431081229,10.69,158.08,158.06,3.1624]
[1727431082325,10.69,158.08,158.07,3.1623]
[1727431082624,13.8522,158.08,158.03,12.0697]
[1727431083028,10.69,158.06,158.05,3.1626]
[1727431083233,10.69,158.07,158.03,12.0697]
[1727431084937,10.69,158.07,158.06,3.1624]
[1727431086034,10.69,158.07,158.03,1.3797]
[1727431086335,10.69,158.06,158.03,1.3797]
[1727431087241,10.69,158.07,158.03,12.0697]
[1727431087633,10.69,158.07,158.06,3.1625]
[1727431088939,10.69,158.07,158.03,1.3797]
[1727431089135,10.69,158.05,158.02,53.83802377]
[1727431089436,13.8532,158.03,158.0,3.1636]
[1727431089735,10.69,158.04,158.0,10.69]
[1727431090144,10.69,158.04,158.02,3.1632]
[1727431093029,10.69,158.03,158.02,3.1632]
[1727431093434,10.69,158.03,158.01,3.1634]
[1727431093633,10.69,158.02,157.97,1.3856]
[1727431093854,10.69,157.99,157.97,1.3856]
[1727431094538,10.69,157.99,157.98,3.1641]
[1727431094739,10.69,158.0,157.97,1.3856]
[1727431095246,10.69,158.0,157.99,3.1639]
[1727431097972,10.69,158.0,157.87,6.3326]
[1727431098147,10.69,157.96,157.91,10.69]
[1727431098345,10.69,157.92,157.91,3.1654]
[1727431098748,10.69,157.94,157.9,1.3073]
[1727431100149,6.3255,158.05,157.91,10.69]
[1727431100350,10.69,157.95,157.91,10.69]
[1727431100539,10.69,157.95,157.9,1.3073]
[1727431100744,10.69,157.95,157.93,3.165]
[1727431101346,10.69,157.94,157.93,3.165]
[1727431103347,10.69,157.94,157.88,1.3469]
[1727431103549,10.69,157.89,157.83,14.5968]
[1727431104257,10.69,157.89,157.83,3.9068]
[1727431104456,10.69,157.89,157.85,10.69]
[1727431105753,10.69,157.89,157.88,3.1661]
[1727431106651,3.1656,157.91,157.88,3.1661]
[1727431106852,2.6404,157.97,157.87,10.69]
[1727431107047,10.69,157.92,157.87,10.69]
[1727431107958,10.69,157.92,157.89,3.1658]
[1727431108358,13.8554,157.92,157.89,3.1658]
[1727431108557,3.1654,157.92,157.89,3.1658]
[1727431108760,10.69,157.91,157.9,3.1657]
[1727431112964,10.69,157.91,157.88,3.166]
[1727431113172,10.69,157.89,157.88,3.166]
[1727431113471,5.72835299,157.97,157.86,10.69]
[1727431113765,10.69,157.9,157.89,3.1658]
[1727431115162,5.72835299,157.97,157.88,10.69]
[1727431115467,10.69,157.92,157.88,10.69]
[1727431115860,3.1648,157.95,157.89,10.69]
[1727431116062,10.69,157.95,157.9,10.69]
[1727431116265,10.69,157.95,157.94,3.1649]
[1727431117764,10.69,157.95,157.93,3.165]
[1727431118370,10.69,157.95,157.94,3.1649]
[1727431120071,10.69,157.95,157.86,6.3331]
[1727431120390,10.69,157.93,157.88,10.69]
[1727431121770,10.69,157.93,157.92,3.1653]
[1727431126870,10.69,157.94,157.93,3.1651]
[1727431127464,10.69,157.94,157.92,3.1652]
[1727431129173,13.8549,157.94,157.92,3.1652]
[1727431131472,13.8549,157.94,157.91,3.1655]
[1727431131473,3.1651,157.93,157.91,3.1655]
[1727431131976,13.855,157.94,157.91,3.1655]
[1727431132774,13.855,157.94,157.92,3.1652]
[1727431140484,10.69,157.94,157.92,3.1652]
[1727431140986,3.1648,157.95,157.92,3.1652]
[1727431141187,10.69,157.93,157.92,3.1652]
[1727431144288,3.1648,157.95,157.93,3.1651]
[1727431144481,10.69,157.94,157.93,3.1651]
[1727431145182,10.69,157.94,157.92,3.1652]
[1727431145787,13.8549,157.94,157.92,3.1652]
[1727431146189,10.69,157.94,157.93,3.1651]
[1727431162696,13.8549,157.94,157.92,3.1653]
[1727431162902,10.69,157.94,157.86,6.3331]
[1727431163103,10.69,157.94,157.89,10.69]
[1727431163900,10.69,157.94,157.93,3.1651]
[1727431165999,10.69,157.95,157.94,3.1648]
[1727431166396,10.69,157.98,157.93,10.69]
[1727431167697,10.69,157.98,157.94,10.69]
[1727431168900,10.69,157.98,157.96,3.1644]
[1727431169095,10.69,157.97,157.9,4.0031]
[1727431169304,10.69,157.92,157.91,3.1655]
[1727431173406,10.69,157.92,157.86,2.6804]
[1727431173709,4.60754286,158.01,157.88,10.69]
[1727431173907,3.1649,157.95,157.92,3.1652]
[1727431174112,10.69,157.93,157.92,3.1652]
[1727431174711,4.60754286,158.01,157.92,3.1652]
[1727431174906,10.69,157.93,157.92,3.1652]
[1727431175408,0.5147,157.94,157.92,3.1652]
[1727431175611,10.69,157.93,157.92,3.1652]
[1727431176011,0.5147,157.94,157.93,3.1651]
[1727431176309,11.2047,157.94,157.93,3.1651]
[1727431181014,0.5147,157.94,157.86,2.6804]
[1727431181218,11.2047,157.94,157.89,10.69]
[1727431181718,14.3696,157.94,157.89,10.69]
[1727431183114,14.3696,157.94,157.92,3.1653]
[1727431185020,14.3696,157.94,157.9,10.69]
[1727431185021,0.5147,157.94,157.9,10.69]
[1727431185226,11.2047,157.94,157.9,10.69]
[1727431185428,11.2047,157.94,157.92,3.1652]
[1727431186517,14.3697,157.94,157.92,3.1652]
[1727431187423,13.855,157.94,157.92,3.1652]
[1727431190924,13.8552,157.93,157.91,3.1655]
[1727431191130,10.69,157.92,157.91,3.1655]
[1727431191332,13.8553,157.92,157.9,3.1656]
[1727431191533,10.69,157.92,157.88,10.69]
[1727431192835,10.69,157.92,157.91,3.1654]
[1727431197841,10.69,157.92,157.9,3.1656]
[1727431198032,2.5657,157.99,157.86,2.6804]
[1727431198033,10.69,157.91,157.86,2.6804]
[1727431198240,10.69,157.89,157.85,10.69]
[1727431198835,3.1654,157.92,157.87,10.69]
[1727431199146,10.69,157.9,157.87,10.69]
[1727431199744,10.69,157.9,157.89,3.1658]
[1727431203450,1.3313,157.95,157.89,10.69]
[1727431203642,1.3313,157.95,157.9,10.69]
[1727431203643,10.69,157.95,157.9,10.69]
[1727431203843,13.8548,157.95,157.9,10.69]
[1727431204039,13.8548,157.95,157.93,3.1651]
[1727431204443,10.69,157.98,157.94,10.69]
[1727431204645,10.69,157.98,157.96,3.1644]
[1727431205045,10.69,157.98,157.94,10.69]
[1727431206050,10.69,157.98,157.96,3.1644]
[1727431206851,10.69,157.97,157.91,2.5721]
[1727431207052,10.69,157.96,157.91,13.2621]
[1727431207259,1.3806,157.99,157.93,10.69]
[1727431207551,10.69,157.98,157.96,3.1644]
[1727431207754,4.5446,157.99,157.93,10.69]
[1727431207956,10.69,157.98,157.93,10.69]
[1727431208655,10.69,157.99,157.95,10.69]
[1727431208856,2.5555,158.04,157.91,2.5721]
[1727431208857,10.69,158.02,157.97,10.69]
[1727431209157,3.8535,158.04,158.01,3.1634]
[1727431209348,10.69,158.03,158.01,3.1634]
[1727431209548,10.69,158.02,158.01,3.1634]
[1727431209748,10.69,158.02,158.0,3.1636]
[1727431209948,4.461,158.04,157.98,10.69]
[1727431210154,10.69,158.05,158.0,10.69]
[1727431210360,10.69,158.01,157.92,6.3304]
[1727431210549,10.69,157.98,157.91,3.8622]
[1727431210752,10.69,157.97,157.92,10.69]
[1727431210954,10.69,157.97,157.96,3.1645]
[1727431211654,10.69,157.97,157.91,3.8622]
[1727431211856,10.69,157.96,157.92,10.69]
[1727431212258,10.69,157.97,157.95,3.1646]
[1727431215053,10.69,157.96,157.95,3.1646]
[1727431216459,13.8545,157.96,157.93,3.165]
[1727431216659,10.69,157.94,157.93,3.165]
[1727431218060,10.69,157.94,157.92,3.1653]
[1727431218259,10.69,157.93,157.92,3.1653]
[1727431218562,10.69,157.94,157.92,3.1653]
[1727431219062,10.69,157.94,157.93,3.1651]
[1727431220156,13.8549,157.94,157.89,10.69]
[1727431220361,10.69,157.93,157.88,10.69]
[1727431220657,3.1652,157.93,157.9,3.1656]
[1727431220861,10.69,157.91,157.9,3.1656]
[1727431221057,10.69,157.91,157.84,1.3163]
[1727431221254,3.09319388,157.92,157.84,1.3163]
[1727431221255,10.69,157.87,157.84,1.3163]
[1727431221455,10.69,157.87,157.83,2.635]
[1727431222160,10.69,157.89,157.84,10.69]
[1727431222759,10.69,157.88,157.86,3.1665]
[1727431224063,10.69,157.88,157.87,3.1663]
[1727431225263,10.69,157.88,157.86,3.1664]
[1727431225568,4.53812562,157.92,157.83,12.0103]
[1727431225569,10.69,157.87,157.83,12.0103]
[1727431226766,10.69,157.88,157.86,3.1664]
[1727431227961,13.8562,157.88,157.85,3.1667]
[1727431228166,10.69,157.87,157.85,3.1667]
[1727431228361,10.69,157.87,157.8,53.91153703]
[1727431228668,10.69,157.85,157.81,10.69]
[1727431228861,10.69,157.85,157.84,3.1669]
[1727431229261,10.69,157.85,157.79,2.5783]
[1727431229463,10.69,157.84,157.83,3.1671]
[1727431229664,10.69,157.87,157.82,10.69]
[1727431229862,1.3566,157.92,157.86,10.69]
[1727431230072,10.69,157.91,157.87,10.69]
[1727431230365,13.8553,157.93,157.9,3.1656]
[1727431231361,14.3696,157.94,157.89,10.69]
[1727431231671,14.3696,157.94,157.9,10.69]
[1727431231871,14.3696,157.94,157.91,3.1655]
[1727431232068,13.8551,157.93,157.88,10.69]
[1727431232272,10.69,157.92,157.87,10.69]
[1727431232473,10.69,157.91,157.87,10.69]
[1727431232668,0.5147,157.94,157.85,10.69]
[1727431232669,10.69,157.89,157.85,10.69]
[1727431233770,10.69,157.89,157.86,3.1665]
[1727431233971,10.69,157.89,157.85,10.69]
[1727431234875,10.69,157.89,157.87,3.1662]
[1727431236176,0.5147,157.94,157.88,13.92637977]
[1727431236364,0.5147,157.94,157.93,10.69]
[1727431236772,0.5147,157.94,157.93,13.8551]
[1727431237275,93.16071872,157.97,157.93,13.8551]
[1727431237276,96.32511872,157.97,157.94,3.1648]
[1727431238980,93.16071872,157.97,157.95,3.1647]
[1727431239871,93.16071872,157.97,157.96,3.1645]
[1727431240275,93.16071872,157.97,157.91,16.72]
[1727431240578,93.16071872,157.97,157.89,2.7272]
[1727431241482,16.72,157.96,157.89,2.7272]
[1727431241877,3.165,157.94,157.91,3.1654]
[1727431242277,16.72,157.96,157.86,16.72]
[1727431242478,16.72,157.96,157.9,3.1656]
[1727431243075,16.72,157.94,157.9,3.1656]